bitfinex/quotes_SOLUSD_20251216
["timestamp","ask_amount","ask_price","bid_price","bid_amount"]
[1765917682996,0.1,128.34,128.32,0.7]
[1765917684199,0.71,128.33,128.3,8.54]
[1765917684583,0.1,128.34,128.31,0.7]
[1765917684971,0.81,128.34,128.31,0.7]
[1765917685703,7.79241019,128.33,128.31,0.7]
[1765917685905,7.79241019,128.33,128.3,8.54]
[1765917685906,8.50241019,128.33,128.3,8.54]
[1765917686077,0.71,128.32,128.3,8.54]
[1765917687580,7.79362481,128.31,128.3,8.54]
[1765917688201,7.79362481,128.31,128.28,0.7]
[1765917688382,7.79362481,128.31,128.28,9.24]
[1765917688897,7.79362481,128.31,128.28,8.54]
[1765917689093,7.79362481,128.31,128.29,0.7]
[1765917690908,7.79317735,128.32,128.3,0.7]
[1765917697381,7.79272611,128.33,128.3,7.7942042]
[1765917697582,0.1,128.34,128.31,0.7]
[1765917697785,7.89180302,128.34,128.31,0.7]
[1765917697988,8.60180302,128.34,128.31,0.7]
[1765917698391,28.08131057,128.34,128.31,0.7]
[1765917699210,28.08131057,128.34,128.3,0.7]
[1765917699211,0.71,128.33,128.3,0.7]
[1765917699379,27.37131057,128.34,128.3,0.7]
[1765917699584,30.50971998,128.34,128.3,0.7]
[1765917699937,0.71,128.33,128.3,0.7]
[1765917700511,30.50971998,128.34,128.3,0.7]
[1765917701210,30.50971998,128.34,128.27,0.7]
[1765917701211,2.42840941,128.31,128.27,0.7]
[1765917701413,3.13840941,128.29,128.26,8.54]
[1765917701621,3.13840941,128.27,128.23,0.7]
[1765917701923,3.13840941,128.27,128.24,0.7]
[1765917702289,0.71,128.27,128.24,0.7]
[1765917702608,3.13840941,128.28,128.24,0.7]
[1765917703411,7.79605519,128.27,128.24,0.7]
[1765917705109,8.50605519,128.27,128.24,0.7]
[1765917707430,19.48918889,128.28,128.24,0.7]
[1765917707714,0.71,128.27,128.24,0.7]
[1765917708508,7.79666302,128.26,128.24,0.7]
[1765917710817,2.42840941,128.26,128.2,0.7]
[1765917711020,0.71,128.24,128.21,0.7]
[1765917711199,0.71,128.24,128.21,9.24]
[1765917711925,0.71,128.26,128.22,0.7]
[1765917712727,0.71,128.25,128.22,0.7]
[1765917712918,8.50767673,128.25,128.22,0.7]
[1765917713498,7.79767673,128.25,128.23,0.7]
[1765917714323,29.92570787,128.29,128.24,2.42840941]
[1765917714624,8.50544745,128.28,128.25,0.7]
[1765917714827,8.50544745,128.28,128.26,0.7]
[1765917714828,7.79544745,128.28,128.26,0.7]
[1765917715024,8.50544745,128.28,128.25,3.12840941]
[1765917715212,8.50544745,128.28,128.25,0.7]
[1765917715409,27.99406609,128.28,128.24,9.24]
[1765917715623,0.71,128.27,128.24,11.66840941]
[1765917715913,8.50544745,128.28,128.25,0.7]
[1765917718429,18.23278752,128.29,128.26,0.7]
[1765917718630,18.23278752,128.29,128.26,2.42840941]
[1765917718831,7.79511456,128.29,128.27,9.24]
[1765917719510,7.79445923,128.3,128.28,0.7]
[1765917721411,7.79388018,128.31,128.29,3.79616457]
[1765917721823,7.79388018,128.31,128.29,4.49616457]
[1765917722030,0.71,128.3,128.27,8.54]
[1765917722420,4.50616457,128.3,128.27,8.54]
[1765917722625,0.71,128.29,128.27,8.54]
[1765917723121,7.79544745,128.28,128.27,8.54]
[1765917723319,8.50544745,128.28,128.27,8.54]
[1765917726044,8.50544745,128.28,128.25,0.65]
[1765917729137,0.69,128.27,128.24,8.54]
[1765917729528,0.69,128.26,128.24,8.54]
[1765917730839,39.62233615,128.28,128.24,9.19]
[1765917731047,8.48666045,128.27,128.24,9.19]
[1765917731247,8.48666045,128.27,128.24,12.98827006]
[1765917731448,8.48666045,128.27,128.24,9.19]
[1765917732038,27.97679844,128.27,128.24,9.19]
[1765917732648,27.97679844,128.27,128.24,8.54]
[1765917732649,0.69,128.26,128.24,8.54]
[1765917733035,27.97679844,128.27,128.24,9.19]
[1765917734154,7.79727095,128.25,128.24,9.19]
[1765917734447,7.79727095,128.25,128.24,8.54]
[1765917734661,7.79727095,128.25,128.24,9.19]
[1765917735149,27.97619318,128.27,128.24,9.19]
[1765917736547,7.79727095,128.25,128.24,8.54]
[1765917736752,8.48727095,128.25,128.24,8.54]
[1765917737254,12.28554101,128.25,128.24,8.54]
[1765917737435,0.69,128.24,128.21,16.98964888]
[1765917737752,7.79727095,128.25,128.22,0.65]
[1765917738362,8.48727095,128.25,128.22,0.65]
[1765917741952,7.79727095,128.25,128.21,11.59796942]
[1765917742152,0.69,128.22,128.19,0.65]
[1765917742456,0.69,128.22,128.15,39.01564489]
[1765917742457,3.79827006,128.22,128.17,3.79827006]
[1765917742759,0.69,128.23,128.2,0.65]
[1765917743356,0.69,128.23,128.19,9.19]
[1765917743538,0.69,128.23,128.2,0.65]
[1765917744150,7.79872586,128.23,128.2,0.65]
[1765917744352,8.48872586,128.23,128.2,0.65]
[1765917745043,8.48872586,128.23,128.2,12.24852218]
[1765917745560,7.79806562,128.24,128.21,0.65]
[1765917746136,8.48806562,128.24,128.21,0.65]
[1765917747135,7.797391,128.25,128.23,0.65]
[1765917748249,8.487391,128.25,128.22,9.19]
[1765917749060,8.487391,128.25,128.22,16.98898914]
[1765917749460,7.797391,128.25,128.22,20.1372592]
[1765917749641,7.79695453,128.26,128.24,0.65]
[1765917750145,8.48695453,128.26,128.23,4.44827006]
[1765917750349,8.48695453,128.26,128.22,16.33898914]
[1765917750350,7.79629703,128.27,128.24,3.79827006]
[1765917750553,7.79629703,128.27,128.25,0.65]
[1765917750956,8.48629703,128.27,128.24,4.44827006]
[1765917751350,8.48629703,128.27,128.24,0.65]
[1765917759372,7.79629703,128.27,128.25,0.69]
[1765917759556,8.51629703,128.27,128.24,7.79775319]
[1765917759758,8.51629703,128.27,128.24,0.69]
[1765917760682,0.72,128.24,128.21,0.69]
[1765917761171,7.79848709,128.23,128.21,9.23]
[1765917761346,23.29167681,128.25,128.21,9.23]
[1765917761347,7.79666302,128.26,128.22,3.79827006]
[1765917761545,7.79666302,128.26,128.22,0.69]
[1765917761546,0.72,128.25,128.22,0.69]
[1765917762965,8.51787812,128.25,128.22,0.69]
[1765917763878,0.72,128.24,128.21,20.82784086]
[1765917764968,8.51791897,128.24,128.21,20.82784086]
[1765917765171,8.51791897,128.24,128.21,20.13784086]
[1765917765645,7.79791897,128.24,128.22,0.69]
[1765917765842,8.51757878,128.25,128.22,0.69]
[1765917766563,7.79757878,128.25,128.23,0.69]
[1765917767286,8.51757878,128.25,128.22,4.48827006]
[1765917767868,8.51757878,128.25,128.23,0.69]
[1765917768779,8.51757878,128.25,128.22,4.48827006]
[1765917772373,7.79670082,128.26,128.24,0.69]
[1765917772674,10.43767296,128.27,128.24,4.48827006]
[1765917772675,8.51618753,128.27,128.24,4.48827006]
[1765917772852,8.51618753,128.27,128.25,0.69]
[1765917772853,7.79618753,128.27,128.25,0.69]
[1765917773052,8.51618753,128.27,128.24,4.48827006]
[1765917775684,8.51618753,128.27,128.24,12.28608465]
[1765917777389,19.486551,128.3,128.27,0.69]
[1765917777754,20.206551,128.3,128.27,0.69]
[1765917778386,8.5145355,128.3,128.28,0.69]
[1765917778573,20.20359709,128.32,128.29,0.69]
[1765917779082,8.51388483,128.31,128.29,0.69]
[1765917779391,8.51388483,128.31,128.28,4.48827006]
[1765917780155,7.79388483,128.31,128.29,0.69]
[1765917780356,7.79329507,128.32,128.3,0.69]
[1765917780574,7.79329507,128.32,128.29,12.33827006]
[1765917780777,8.51329507,128.32,128.29,9.23]
[1765917785283,8.51329507,128.32,128.29,8.54]
[1765917785486,7.79329507,128.32,128.3,0.72]
[1765917785658,8.47329507,128.32,128.3,0.72]
[1765917786264,8.47329507,128.32,128.29,11.6893609]
[1765917786685,7.79286869,128.33,128.3,0.72]
[1765917786967,7.89205029,128.34,128.32,0.72]
[1765917787681,0.1,128.34,128.32,2.4293609]
[1765917787993,0.1,128.34,128.33,0.72]
[1765917787994,7.89180302,128.34,128.33,0.72]
[1765917788488,7.89180302,128.34,128.32,9.26]
[1765917788989,0.1,128.34,128.33,0.72]
[1765917789493,0.1,128.34,128.29,19.48709954]
[1765917789494,0.68,128.33,128.29,9.26]
[1765917790008,0.68,128.33,128.3,0.72]
[1765917790194,0.68,128.33,128.29,8.54]
[1765917790389,0.68,128.33,128.29,9.26]
[1765917790988,7.79301745,128.32,128.3,0.72]
[1765917792398,7.79301745,128.32,128.29,8.54]
[1765917792399,0.68,128.31,128.29,8.54]
[1765917792579,8.47301745,128.32,128.29,9.26]
[1765917794098,7.79301745,128.32,128.29,9.26]
[1765917794399,8.47301745,128.32,128.29,9.26]
[1765917796095,7.79301745,128.32,128.29,8.54]
[1765917796276,0.68,128.31,128.29,8.54]
[1765917796600,0.68,128.29,128.25,0.72]
[1765917797907,8.47544745,128.28,128.25,0.72]
[1765917798791,27.96406609,128.28,128.25,0.72]
[1765917799305,27.96406609,128.28,128.24,8.54]
[1765917799306,0.68,128.27,128.24,9.26]
[1765917800099,8.47666302,128.26,128.24,8.54]
[1765917801404,8.47666302,128.26,128.24,9.26]
[1765917801705,7.79666302,128.26,128.24,9.26]
[1765917802197,8.47666302,128.26,128.24,9.26]
[1765917802900,27.28661656,128.27,128.24,9.26]
[1765917803108,27.96661656,128.27,128.24,9.26]
[1765917803708,8.47605519,128.27,128.24,9.26]
[1765917805035,0.68,128.3,128.25,0.72]
[1765917805311,29.9227126,128.31,128.25,0.72]
[1765917805312,8.47514308,128.29,128.26,0.72]
[1765917806208,0.68,128.28,128.26,0.72]
[1765917806409,8.47514308,128.29,128.26,0.72]
[1765917806984,0.68,128.28,128.25,0.72]
[1765917808013,27.96224262,128.29,128.26,0.72]
[1765917812188,30.39342992,128.29,128.26,0.72]
[1765917812529,0.68,128.28,128.25,8.54]
[1765917812712,0.68,128.27,128.25,8.54]
[1765917813792,0.68,128.27,128.25,9.24]
[1765917814199,8.47640998,128.27,128.25,9.24]
[1765917815024,8.47640998,128.27,128.25,8.54]
[1765917815715,7.79640998,128.27,128.25,9.26]
[1765917815900,7.79590853,128.28,128.26,0.72]
[1765917817018,8.45590853,128.28,128.25,9.26]
[1765917818105,7.79590853,128.28,128.26,0.72]
[1765917819212,17.34994492,128.32,128.25,16.33722514]
[1765917819213,7.79301745,128.32,128.27,2.4311873]
[1765917819519,0.76,128.34,128.3,0.72]
[1765917820035,7.79244772,128.33,128.3,3.1511873]
[1765917820517,7.79244772,128.33,128.3,2.4311873]
[1765917820722,7.79244772,128.33,128.31,0.72]
[1765917823023,8.45244772,128.33,128.3,3.1511873]
[1765917823232,7.79244772,128.33,128.31,0.72]
[1765917825314,8.45244772,128.33,128.31,0.72]
[1765917825713,7.79244772,128.33,128.31,0.72]
[1765917825914,8.45244772,128.33,128.31,0.72]
[1765917826117,8.45244772,128.33,128.3,3.1511873]
[1765917826624,8.45244772,128.33,128.3,0.72]
[1765917826829,27.9334732,128.33,128.3,0.72]
[1765917827496,0.66,128.31,128.28,8.54]
[1765917827719,0.66,128.3,128.28,8.54]
[1765917828631,2.4311873,128.31,128.28,9.26]
[1765917828632,3.0911873,128.31,128.28,9.26]
[1765917828933,0.66,128.31,128.28,9.26]
[1765917829112,0.66,128.31,128.29,0.72]
[1765917829423,7.79423226,128.3,128.28,9.26]
[1765917829726,8.45423226,128.3,128.28,9.26]
[1765917830527,7.79423226,128.3,128.28,9.26]
[1765917831024,8.45393739,128.31,128.28,9.26]
[1765917834034,0.66,128.3,128.28,8.54]
[1765917834543,27.93799942,128.31,128.28,9.26]
[1765917834919,0.66,128.3,128.28,8.54]
[1765917835739,0.66,128.29,128.28,8.54]
[1765917835938,0.66,128.28,128.25,0.72]
[1765917836109,0.66,128.28,128.25,9.26]
[1765917836319,0.66,128.28,128.25,16.33719527]
[1765917836619,7.79483981,128.29,128.27,0.72]
[1765917837127,8.45483981,128.29,128.26,0.72]
[1765917837332,0.66,128.28,128.25,8.54]
[1765917837554,27.94193935,128.29,128.26,0.72]
[1765917837743,0.66,128.28,128.25,9.26]
[1765917837914,0.66,128.28,128.26,0.72]
[1765917838442,27.94193935,128.29,128.26,0.72]
[1765917839131,7.79483981,128.29,128.27,0.72]
[1765917840446,7.79423226,128.3,128.27,0.72]
[1765917840624,7.79375914,128.31,128.27,0.72]
[1765917840826,7.79375914,128.31,128.29,0.72]
[1765917841732,0.66,128.32,128.29,0.72]
[1765917841733,8.45326783,128.32,128.29,0.72]
[1765917843341,7.79326783,128.32,128.29,0.72]
[1765917843542,7.79326783,128.32,128.3,0.72]
[1765917843744,7.79326783,128.32,128.3,4.45546956]
[1765917843947,7.79326783,128.32,128.31,0.66]
[1765917844426,7.79326783,128.32,128.3,4.45546956]
[1765917845350,0.67,128.31,128.29,8.54]
[1765917845521,8.46326783,128.32,128.29,9.2]
[1765917846051,8.46326783,128.32,128.3,0.66]
[1765917846443,7.79326783,128.32,128.3,0.66]
[1765917846922,27.27581147,128.32,128.3,0.66]
[1765917847855,27.27581147,128.32,128.29,8.54]
[1765917847856,0.67,128.31,128.29,8.54]
[1765917848035,0.67,128.31,128.27,8.54]
[1765917848236,0.67,128.31,128.27,9.2]
[1765917848750,0.67,128.31,128.28,0.66]
[1765917848950,7.79326783,128.32,128.29,0.66]
[1765917849137,7.79326783,128.32,128.3,0.66]
[1765917849456,7.79241019,128.33,128.31,0.66]
[1765917850827,27.94343567,128.33,128.3,8.54]
[1765917851033,27.94343567,128.33,128.3,9.2]
[1765917851619,0.67,128.32,128.3,8.54]
[1765917852055,20.15102548,128.33,128.3,9.2]
[1765917852455,20.15102548,128.33,128.3,8.54]
[1765917852627,20.15102548,128.33,128.3,9.2]
[1765917853540,27.94343567,128.33,128.3,9.2]
[1765917854861,0.67,128.32,128.3,8.54]
[1765917855844,27.94343567,128.33,128.3,9.2]
[1765917857655,27.27343567,128.33,128.3,9.2]
[1765917857836,27.94343567,128.33,128.3,9.2]
[1765917861057,8.46241019,128.33,128.3,9.2]
[1765917861269,8.46241019,128.33,128.31,0.66]
[1765917861564,8.46241019,128.33,128.3,9.2]
[1765917862252,8.46241019,128.33,128.31,0.66]
[1765917862452,8.46241019,128.33,128.3,8.54]
[1765917862653,8.46241019,128.33,128.3,9.2]
[1765917867964,7.79241019,128.33,128.3,9.2]
[1765917868150,8.46241019,128.33,128.3,9.2]
[1765917868355,27.94343567,128.33,128.3,9.2]
[1765917868555,0.67,128.31,128.3,8.54]
[1765917868755,0.67,128.3,128.25,0.66]
[1765917868965,0.67,128.29,128.26,8.54]
[1765917869169,0.67,128.28,128.26,8.54]
[1765917869368,0.67,128.28,128.26,9.2]
[1765917869753,7.79605519,128.27,128.26,9.2]
[1765917870650,7.79544745,128.28,128.26,9.2]
[1765917870878,8.46544745,128.28,128.26,9.2]
[1765917871576,7.79544745,128.28,128.26,9.2]
[1765917871748,0.67,128.28,128.26,9.2]
[1765917871948,27.95266806,128.29,128.26,9.2]
[1765917873075,8.46604868,128.28,128.26,9.2]
[1765917873280,8.46604868,128.28,128.26,8.54]
[1765917878472,8.46604868,128.28,128.26,9.22]
[1765917881581,8.46604868,128.28,128.26,8.54]
[1765917881783,8.46604868,128.28,128.26,9.22]
[1765917882283,8.46604868,128.28,128.26,8.54]
[1765917882985,8.46604868,128.28,128.26,9.22]
[1765917883366,8.46604868,128.28,128.26,8.54]
[1765917883770,8.46604868,128.28,128.26,9.22]
[1765917892385,8.46604868,128.28,128.26,8.54]
[1765917892778,8.46604868,128.28,128.26,9.22]
[1765917895600,8.46604868,128.28,128.26,8.54]
[1765917895974,8.46604868,128.28,128.26,9.22]
[1765917896174,8.46604868,128.28,128.26,8.54]
[1765917896779,8.46604868,128.28,128.26,9.22]
[1765917900137,3.79803209,128.27,128.22,4.47803209]
[1765917900278,0.69,128.25,128.22,8.54]
[1765917900479,0.69,128.23,128.19,9.22]
[1765917900780,0.69,128.22,128.19,9.22]
[1765917900997,0.69,128.22,128.19,13.01803209]
[1765917901188,7.79970361,128.21,128.19,9.22]
[1765917901402,8.48938089,128.22,128.2,0.68]
[1765917901800,29.93144272,128.25,128.21,3.79803209]
[1765917901999,0.69,128.24,128.22,0.68]
[1765917902307,30.62144272,128.25,128.22,0.68]
[1765917902621,30.62144272,128.25,128.19,35.84320541]
[1765917902622,0.69,128.22,128.17,7.80181685]
[1765917902795,27.29281542,128.24,128.2,3.79803209]
[1765917902796,7.79811798,128.24,128.2,3.79803209]
[1765917902997,7.79811798,128.24,128.22,0.68]
[1765917903203,8.48811798,128.24,128.22,0.68]
[1765917904222,8.48811798,128.24,128.21,8.54]
[1765917904517,8.50666302,128.26,128.23,0.7]
[1765917905400,27.99714956,128.27,128.24,3.13211721]
[1765917905605,7.79605519,128.27,128.25,0.7]
[1765917906192,8.50605519,128.27,128.24,11.67211721]
[1765917906609,8.50605519,128.27,128.24,9.24]
[1765917908541,0.71,128.27,128.23,0.7]
[1765917909006,0.71,128.27,128.23,9.24]
[1765917909207,0.71,128.26,128.23,9.24]
[1765917910526,7.79727095,128.25,128.23,9.24]
[1765917912205,8.50727095,128.25,128.23,9.24]
[1765917913137,7.79727095,128.25,128.23,9.24]
[1765917913338,8.50686283,128.26,128.24,0.7]
[1765917913523,8.50686283,128.26,128.23,9.24]
[1765917917554,8.50686283,128.26,128.23,0.7]
[1765917917751,8.50686283,128.26,128.23,9.24]
[1765917918763,8.50686283,128.26,128.23,8.54]
[1765917918942,8.50686283,128.26,128.23,9.24]
[1765917919948,0.71,128.26,128.23,8.54]
[1765917920850,17.34994492,128.29,128.23,8.54]
[1765917920851,7.79568939,128.28,128.26,0.7]
[1765917921022,8.50509363,128.29,128.27,0.7]
[1765917921222,8.50509363,128.29,128.26,8.54]
[1765917921428,8.50509363,128.29,128.26,11.67211721]
[1765917922018,8.50509363,128.29,128.27,3.13211721]
[1765917922238,7.79509363,128.29,128.27,3.13211721]
[1765917922440,8.50509363,128.29,128.27,3.13211721]
[1765917922835,8.50509363,128.29,128.27,2.43211721]
[1765917923160,8.50509363,128.29,128.26,11.67211721]
[1765917924263,0.71,128.28,128.27,8.54]
[1765917925128,0.71,128.28,128.24,3.13211721]
[1765917925328,0.71,128.28,128.25,9.24]
[1765917925734,0.71,128.28,128.25,8.54]
[1765917925930,0.71,128.28,128.25,10.97211721]
[1765917926138,8.50591293,128.28,128.25,11.67211721]
[1765917926331,7.79591293,128.28,128.25,11.67211721]
[1765917926537,0.71,128.27,128.25,8.54]
[1765917927254,0.71,128.27,128.23,8.49833008]
[1765917927461,0.71,128.27,128.24,11.67211721]
[1765917928277,8.50641539,128.27,128.24,11.67211721]
[1765917928647,0.71,128.26,128.21,0.7]
[1765917928830,0.71,128.26,128.23,3.13211721]
[1765917930134,0.71,128.26,128.24,8.54]
[1765917930341,7.79727095,128.25,128.24,8.54]
[1765917930551,8.50727095,128.25,128.24,8.54]
[1765917930876,7.79696444,128.26,128.24,9.24]
[1765917931343,8.50696444,128.26,128.24,9.24]
[1765917931743,8.50696444,128.26,128.24,8.54]
[1765917932738,0.71,128.25,128.24,8.54]
[1765917933433,7.79696444,128.26,128.24,9.24]
[1765917933434,0.71,128.26,128.24,9.24]
[1765917934934,0.71,128.26,128.24,8.54]
[1765917935335,8.50724009,128.26,128.24,8.54]
[1765917936336,27.28619318,128.27,128.24,8.54]
[1765917936540,0.69,128.26,128.24,8.54]
[1765917937546,0.69,128.26,128.24,9.2]
[1765917939260,8.48712937,128.26,128.24,9.2]
[1765917939763,10.43767296,128.29,128.24,9.2]
[1765917939764,4.76552094,128.3,128.26,0.66]
[1765917939943,0.69,128.3,128.27,9.2]
[1765917940853,8.48483981,128.29,128.27,8.54]
[1765917941255,7.79483981,128.29,128.27,8.54]
[1765917941452,0.69,128.28,128.27,8.54]
[1765917941966,8.48483981,128.29,128.27,8.54]
[1765917942340,8.48483981,128.29,128.27,9.2]
[1765917942541,8.48483981,128.29,128.27,8.54]
[1765917943065,8.48483981,128.29,128.27,9.2]
[1765917943237,8.48483981,128.29,128.27,8.54]
[1765917944067,7.79483981,128.29,128.27,10.97038145]
[1765917944244,0.69,128.28,128.27,8.54]
[1765917944649,8.48483981,128.29,128.27,9.2]
[1765917946555,8.48483981,128.29,128.27,8.54]
[1765917947268,8.48483981,128.29,128.27,9.2]
[1765917949958,8.48483981,128.29,128.27,8.54]
[1765917950163,8.48483981,128.29,128.27,9.2]
[1765917951272,0.69,128.27,128.24,0.66]
[1765917951444,2.43038145,128.26,128.21,10.97038145]
[1765917951768,0.69,128.26,128.22,2.43038145]
[1765917951973,0.69,128.26,128.23,0.66]
[1765917952773,7.79727095,128.25,128.23,0.66]
[1765917953771,0.69,128.26,128.23,0.66]
[1765917953772,8.48693561,128.26,128.24,0.66]
[1765917954274,7.79635121,128.27,128.24,2.43038145]
[1765917954479,7.79635121,128.27,128.25,0.66]
[1765917954776,0.69,128.27,128.25,0.66]
[1765917955074,8.48544745,128.28,128.25,3.09038145]
[1765917955248,8.48544745,128.28,128.25,0.66]
[1765917956375,0.69,128.27,128.25,0.66]
[1765917956578,8.48614448,128.27,128.25,0.66]
[1765917956953,7.79614448,128.27,128.25,0.66]
[1765917957378,8.4856204,128.28,128.25,2.43038145]
[1765917957558,8.4856204,128.28,128.26,0.66]
[1765917957751,8.4856204,128.28,128.25,0.66]
[1765917958671,0.69,128.27,128.25,0.66]
[1765917958866,0.69,128.27,128.23,3.09038145]
[1765917959173,0.69,128.26,128.24,8.54]
[1765917960653,8.48707955,128.26,128.24,8.54]
[1765917960863,8.48707955,128.26,128.24,9.2]
[1765917961161,8.48707955,128.26,128.24,8.54]
[1765917962062,8.48707955,128.26,128.24,9.2]
[1765917962263,8.48707955,128.26,128.23,3.09038145]
[1765917962581,8.48707955,128.26,128.23,11.63038145]
[1765917962969,0.69,128.25,128.23,9.2]
[1765917963171,27.97873712,128.26,128.23,9.2]
[1765917965197,0.67,128.25,128.23,9.2]
[1765917965681,27.28873712,128.26,128.23,9.2]
[1765917965878,27.95873712,128.26,128.23,9.2]
[1765917966183,27.28873712,128.26,128.23,9.2]
[1765917966383,8.46778735,128.25,128.23,9.2]
[1765917969187,27.28832059,128.26,128.23,9.2]
[1765917969390,8.46666302,128.26,128.24,0.65]
[1765917970484,7.79666302,128.26,128.24,0.65]
[1765917970788,8.46638219,128.27,128.24,0.65]
[1765917971189,8.46638219,128.27,128.24,3.79936955]
[1765917971391,7.79638219,128.27,128.25,0.65]
[1765917971897,8.46638219,128.27,128.25,0.65]
[1765917972483,7.79638219,128.27,128.25,0.65]
[1765917972779,8.46638219,128.27,128.25,0.65]
[1765917973191,7.79638219,128.27,128.25,0.65]
[1765917973397,0.67,128.27,128.25,0.65]
[1765917973696,0.67,128.27,128.24,4.44936955]
[1765917974196,7.79544745,128.28,128.26,0.65]
[1765917974380,7.79502059,128.29,128.27,9.19]
[1765917974586,7.79502059,128.29,128.28,0.65]
[1765917974892,7.79436793,128.3,128.28,4.44936955]
[1765917975068,7.79436793,128.3,128.28,3.79936955]
[1765917975271,7.79436793,128.3,128.28,4.44936955]
[1765917976682,8.46373393,128.31,128.28,4.44936955]
[1765917977894,7.79301745,128.32,128.28,11.59471164]
[1765917978194,8.46271634,128.33,128.31,0.65]
[1765917978789,8.46271634,128.33,128.3,12.33936955]
[1765917978997,8.46271634,128.33,128.31,0.65]
[1765917979495,19.5803195,128.34,128.32,4.44936955]
[1765917979496,7.89209178,128.34,128.32,4.44936955]
[1765917979698,8.56209178,128.34,128.31,4.44936955]
[1765917979872,0.67,128.33,128.3,9.19]
[1765917980072,0.67,128.33,128.3,12.98936955]
[1765917980273,8.56209178,128.34,128.31,0.65]
[1765917981386,8.56209178,128.34,128.31,4.44936955]
[1765917981993,8.56209178,128.34,128.31,12.98936955]
[1765917982186,8.56209178,128.34,128.31,20.13296266]
[1765917982506,8.56209178,128.34,128.32,9.19]
[1765917982802,0.67,128.33,128.32,8.54]
[1765917983690,8.56209178,128.34,128.32,8.54]
[1765917983887,0.67,128.33,128.29,8.44470186]
[1765917984085,0.67,128.33,128.3,9.19]
[1765917984283,0.67,128.33,128.3,12.98936955]
[1765917985283,8.46270259,128.33,128.3,12.98936955]
[1765917986912,0.1,128.34,128.33,0.65]
[1765917987096,0.1,128.34,128.33,12.98936955]
[1765917990485,0.67,128.33,128.31,8.54]
[1765917990796,0.67,128.33,128.31,12.98936955]
[1765917991005,0.67,128.33,128.31,9.19]
[1765917991204,0.67,128.33,128.31,8.54]
[1765917991511,0.67,128.33,128.3,8.54]
[1765917992091,0.67,128.33,128.28,0.65]
[1765917992295,0.67,128.29,128.25,3.79936955]
[1765917992527,0.67,128.29,128.26,8.54]
[1765917993517,0.67,128.29,128.26,12.98936955]
[1765917993686,0.67,128.29,128.26,12.33936955]
[1765917994006,0.68,128.29,128.21,8.49930031]
[1765917994206,0.68,128.25,128.22,9.24]
[1765917994512,0.68,128.28,128.25,0.7]
[1765917994712,0.68,128.28,128.25,13.03936955]
[1765917995117,0.68,128.28,128.23,3.79936955]
[1765917995304,0.68,128.28,128.24,8.54]
[1765917995499,0.67,128.27,128.24,8.54]
[1765917995699,3.79936955,128.27,128.24,8.54]
[1765917996002,0.67,128.26,128.22,4.50936955]
[1765917996607,0.67,128.24,128.21,8.54]
[1765917997419,7.79727095,128.25,128.22,0.71]
[1765917997616,18.23455319,128.26,128.23,0.71]
[1765917997817,18.90455319,128.26,128.23,0.71]
[1765917998194,0.67,128.23,128.19,3.79936955]
[1765917998404,46.53615568,128.26,128.2,3.79936955]
[1765917998704,0.67,128.25,128.22,3.79936955]
[1765917998896,0.67,128.25,128.2,4.50936955]
[1765917999095,0.67,128.25,128.2,3.79936955]
[1765917999315,0.67,128.25,128.21,0.71]